lending/lending_fUSD_20260209
["ID","MTS","AMOUNT","RATE_DAILY","PERIOD"]
[404821502,1770598889120,509.0,0.00032616,2]
[404821503,1770598928861,500.0,0.00024074,2]
[404821504,1770598929333,500.0,0.00024074,2]
[404821505,1770598929740,500.0,0.00024074,2]
[404821506,1770599073293,181.34,0.000354,2]
[404821507,1770599131677,160.0,0.00035407,2]
[404821508,1770599248765,54.27,0.00032616,2]
[404821509,1770599248786,454.73,0.00032616,2]
[404821510,1770599432261,-500.0,0.00035407,2]
[404821511,1770599432271,-109.8984744,0.00035407,2]
[404821512,1770599432284,-390.1015256,0.00035407,2]
[404821513,1770599432294,-447.17420307,0.00035407,2]
[404821514,1770599432304,-250.0,0.00035408,2]
[404821515,1770599432314,-231.86652069,0.00035408,2]
[404821516,1770599432324,-158.27464105,0.00035508,2]
[404821517,1770599432333,-205.31691692,0.00035571,2]
[404821518,1770599432345,-44.68308308,0.00035571,2]
[404821519,1770599432354,-242.31691692,0.00036,5]
[404821520,1770599432370,-360.41121998,0.00036,5]
[404821521,1770599432381,-500.0,0.00036,5]
[404821528,1770599438400,-4041.2718631,0.00036,5]
[404821529,1770599438410,-1600.0,0.00036499,3]
[404821530,1770599438420,-400.0,0.00036499,3]
[404821531,1770599438430,-400.0,0.00036499,3]
[404821532,1770599438439,-158.27464105,0.00037562,2]
[404821533,1770599438449,-150.0,0.000378,30]
[404821534,1770599438459,-273.67382772,0.00037933,2]
[404821535,1770599438468,-200.61685695,0.00038103,15]
[404821536,1770599438478,-243.69387313,0.00038103,15]
[404821537,1770599438487,-219.38154173,0.00038103,15]
[404821538,1770599438496,-500.0,0.00038103,15]
[404821539,1770599438506,-490.48546925,0.00038103,15]
[404821540,1770599438516,-500.0,0.00038103,15]
[404821541,1770599438526,-500.0,0.00038103,15]
[404821542,1770599438535,-500.0,0.00038103,15]
[404821543,1770599438544,-500.0,0.00038103,15]
[404821544,1770599438554,-500.0,0.00038103,15]
[404821545,1770599438564,-500.0,0.00038103,15]
[404821546,1770599438573,-500.0,0.00038103,15]
[404821547,1770599438583,-500.0,0.00038103,15]
[404821548,1770599438592,-500.0,0.00038103,15]
[404821549,1770599438601,-500.0,0.00038103,15]
[404821550,1770599438615,-500.0,0.00038103,15]
[404821551,1770599438625,-500.0,0.00038103,15]
[404821552,1770599438635,-3500000.0,0.00038104,2]
[404821553,1770599438645,-999.99,0.00038204,2]
[404821554,1770599438654,-1229.01,0.00038204,2]
[404821555,1770599438663,-250.0,0.00038948,2]
[404821556,1770599438673,-13442.91,0.00039581,2]
[404821557,1770599438682,-158.27464105,0.00039716,2]
[404821558,1770599438692,-1000.0,0.00039868,20]
[404821559,1770599438701,-13108.82,0.0004009,2]
[404821560,1770599438712,-150.0,0.00040125,31]
[404821561,1770599438722,-150.0,0.00040125,2]
[404821562,1770599438732,-150.0,0.0004018,31]
[404821563,1770599438741,-250.0,0.00040235,31]
[404821564,1770599438750,-675.66655202,0.000403,2]
[404821565,1770599438759,-1006.33592875,0.000403,15]
[404821566,1770599438768,-858.67944362,0.000403,28]
[404821567,1770599438778,-705.0,0.00040398,4]
[404821568,1770599438787,-155.22705399,0.00040399,15]
[404821569,1770599438796,-1353.7228,0.000404,2]
[404821570,1770599438805,-1410.294,0.00040499,58]
[404821571,1770599438815,-168.241,0.00040499,58]
[404821572,1770599438825,-6033.15,0.000405,2]
[404821573,1770599438834,-300.0,0.00040548,2]
[404821574,1770599438844,-1006.3359287,0.00040746,15]
[404821575,1770599438854,-557.42,0.00040856,2]
[404821576,1770599438863,-858.67944361,0.00040873,28]
[404821577,1770599438873,-279.63040486,0.00040997,2]
[404821578,1770599438883,-21416.38,0.00041064,2]
[404821579,1770599438892,-1006.3359287,0.00041192,15]
[404821580,1770599438902,-6497.0,0.00041292,7]
[404821581,1770599438912,-858.67944361,0.00041446,28]
[404821582,1770599438922,-1006.3359287,0.00041637,15]
[404821583,1770599438932,-150.48,0.00041762,120]
[404821584,1770599438942,-158.27464105,0.0004187,2]
[404821585,1770599438951,-150.0,0.00042,3]
[404821586,1770599438961,-858.67944361,0.00042019,28]
[404821587,1770599438971,-1006.3359287,0.00042083,15]
[404821588,1770599438981,-166.66,0.00042125,2]
[404821589,1770599438990,-675.66655202,0.00042306,2]
[404821590,1770599439004,-5000.0,0.00042466,120]
[404821591,1770599439013,-1006.3359287,0.00042529,15]
[404821592,1770599439023,-858.67944361,0.00042593,28]
[404821593,1770599439037,-800.0,0.0004274,7]
[404821594,1770599439047,-107670.91403832,0.00042885,2]
[404821595,1770599439056,-236.14884171,0.000429,30]
[404821596,1770599439066,-46773.0,0.00042919,30]
[404821597,1770599439075,-1006.3359287,0.00042975,15]
[404821598,1770599439085,-173.79,0.00043,14]
[404821599,1770599439094,-807.6851987,0.00043,3]
[404821600,1770599439103,-2000.0,0.00043,2]
[404821601,1770599439115,-2277.64596629,0.00043068,2]
[404821602,1770599439124,-858.67944361,0.00043166,28]
[404821603,1770599439134,-917.0,0.00043355,2]
[404821604,1770599439143,-412.0,0.00043355,2]
[404821605,1770599439152,-3255.0,0.00043355,2]
[404821606,1770599439162,-1028.794,0.00043355,2]
[404821607,1770599439171,-298.72317016,0.00043356,2]
[404821608,1770599439181,-46773.0,0.00043361,30]
[404821609,1770599439191,-1006.3359287,0.0004342,15]
[404821610,1770599439200,-820.59310254,0.0004366,30]
[404821611,1770599439209,-858.67944361,0.00043739,28]
[404821612,1770599439219,-500.0,0.00043773,10]
[404821613,1770599439228,-6033.15,0.000438,2]
[404821614,1770599439238,-46773.0,0.00043804,30]
[404821615,1770599439247,-1999.0,0.00043835,120]
[404821616,1770599439257,-1000.0,0.00043854,30]
[404821617,1770599439267,-1006.3359287,0.00043866,15]
[404821618,1770599439276,-158.27464105,0.00044024,2]
[404821619,1770599439285,-300.090858,0.00044077,120]
[404821620,1770599439295,-500.0,0.00044109,120]
[404821621,1770599439304,-500.0,0.00044109,120]
[404821622,1770599439314,-500.0,0.00044109,120]
[404821623,1770599439324,-500.0,0.00044109,120]
[404821624,1770599439333,-500.0,0.00044109,120]
[404821625,1770599439342,-500.0,0.00044109,120]
[404821626,1770599439352,-500.0,0.00044109,120]
[404821627,1770599439361,-500.0,0.00044109,120]
[404821628,1770599439370,-500.0,0.00044109,120]
[404821629,1770599439379,-500.0,0.00044109,120]
[404821630,1770599439389,-514.26714741,0.00044109,120]
[404821631,1770599439402,-1999.0,0.00044128,30]
[404821632,1770599439411,-150.0,0.0004424,2]
[404821633,1770599439421,-3484.0,0.0004424,2]
[404821634,1770599439430,-616.0,0.0004424,2]
[404821635,1770599439440,-46773.0,0.00044246,30]
[404821636,1770599439449,-150.0,0.000443,10]
[404821637,1770599439458,-10000.0,0.00044302,2]
[404821638,1770599439468,-155.22705399,0.00044312,15]
[404821639,1770599439477,-675.66655202,0.00044312,2]
[404821640,1770599439487,-1006.3359287,0.00044312,15]
[404821641,1770599439495,-858.67944361,0.00044312,28]
[404821642,1770599439504,-1000.0,0.00044321,10]
[404821643,1770599439514,-513.1571703,0.00044356,120]
[404821644,1770599439523,-500.0,0.00044356,120]
[404821645,1770599439533,-510.70083647,0.00044356,120]
[404821646,1770599439543,-511.22332843,0.00044356,120]
[404821647,1770599439552,-500.0,0.00044356,120]
[404821648,1770599439562,-500.0,0.00044356,120]
[404821649,1770599439572,-500.0,0.00044356,120]
[404821650,1770599439583,-500.0,0.00044356,120]
[404821651,1770599439592,-500.0,0.00044356,120]
[404821652,1770599439602,-500.0,0.00044356,120]
[404821653,1770599439612,-500.0,0.00044356,120]
[404821654,1770599439622,-500.0,0.00044356,120]
[404821655,1770599439633,-500.0,0.00044356,120]
[404821656,1770599439642,-500.0,0.00044356,120]
[404821657,1770599439653,-500.0,0.00044356,120]
[404821658,1770599439662,-500.0,0.00044356,120]
[404821659,1770599439671,-500.0,0.00044356,120]
[404821660,1770599439681,-500.0,0.00044356,120]
[404821661,1770599439691,-500.0,0.00044356,120]
[404821662,1770599439701,-500.0,0.00044356,120]
[404821663,1770599439711,-500.0,0.00044356,120]
[404821664,1770599439720,-500.0,0.00044356,120]
[404821665,1770599439730,-500.0,0.00044356,120]
[404821666,1770599439950,-500.0,0.00044356,120]
[404821667,1770599439960,-500.0,0.00044356,120]
[404821668,1770599439969,-500.0,0.00044356,120]
[404821669,1770599439979,-500.0,0.00044356,120]
[404821670,1770599439988,-597.91969778,0.00044356,120]
[404821671,1770599439999,-500.0,0.00044356,120]
[404821672,1770599440009,-466.24,0.00044356,120]
[404821673,1770599440020,-500.0,0.00044356,120]
[404821674,1770599440033,-500.0,0.00044356,120]
[404821675,1770599440043,-500.0,0.00044356,120]
[404821676,1770599440052,-500.0,0.00044356,120]
[404821677,1770599440061,-500.0,0.00044356,120]
[404821678,1770599440071,-500.0,0.00044356,120]
[404821679,1770599440080,-500.0,0.00044356,120]
[404821680,1770599440095,-500.0,0.00044356,120]
[404821681,1770599440107,-167.31,0.00044356,120]
[404821682,1770599440117,-500.0,0.00044356,120]
[404821683,1770599440127,-500.0,0.00044356,120]
[404821684,1770599440137,-500.0,0.00044356,120]
[404821685,1770599440147,-500.0,0.00044356,120]
[404821686,1770599440156,-500.0,0.00044356,120]
[404821687,1770599440166,-182.16003723,0.00044356,120]
[404821688,1770599440177,-500.0,0.00044356,120]
[404821689,1770599440186,-500.0,0.00044356,30]
[404821690,1770599440197,-500.0,0.00044356,30]
[404821691,1770599440206,-500.0,0.00044356,30]
[404821692,1770599440218,-500.0,0.00044356,30]
[404821693,1770599440228,-500.0,0.00044356,30]
[404821694,1770599440238,-500.0,0.00044356,30]
[404821695,1770599440247,-500.0,0.00044356,30]
[404821696,1770599440258,-500.0,0.00044356,30]
[404821697,1770599440267,-500.0,0.00044356,30]
[404821698,1770599440277,-500.0,0.00044356,30]
[404821699,1770599440286,-500.0,0.00044356,30]
[404821700,1770599440296,-500.0,0.00044356,30]
[404821701,1770599440306,-500.0,0.00044356,30]
[404821702,1770599440315,-500.0,0.00044356,30]
[404821703,1770599440324,-500.0,0.00044356,30]
[404821704,1770599440335,-500.0,0.00044356,30]
[404821705,1770599440345,-500.0,0.00044356,120]
[404821706,1770599440356,-500.0,0.00044356,120]
[404821707,1770599440365,-500.0,0.00044356,120]
[404821708,1770599440375,-632.2,0.00044356,120]
[404821709,1770599440385,-500.0,0.00044356,120]
[404821710,1770599440395,-540.09835616,0.00044356,120]
[404821711,1770599440404,-500.0,0.00044356,120]
[404821712,1770599440414,-500.0,0.00044356,120]
[404821713,1770599440423,-500.0,0.00044356,120]
[404821714,1770599440432,-500.0,0.00044356,120]
[404821715,1770599440443,-500.0,0.00044356,120]
[404821716,1770599440452,-500.0,0.00044356,120]
[404821717,1770599440462,-500.0,0.00044356,120]
[404821718,1770599440471,-571.23701353,0.00044356,120]
[404821719,1770599440480,-500.86672672,0.00044356,120]
[404821720,1770599440492,-510.12889306,0.00044356,120]
[404821721,1770599440502,-510.53821607,0.00044356,120]
[404821722,1770599440512,-500.0,0.00044356,120]
[404821723,1770599440522,-500.0,0.00044356,120]
[404821724,1770599440533,-500.0,0.00044356,120]
[404821725,1770599440543,-500.0,0.00044356,120]
[404821726,1770599440555,-500.0,0.00044356,120]
[404821727,1770599440565,-500.0,0.00044356,120]
[404821728,1770599440575,-500.0,0.00044356,120]
[404821729,1770599440586,-500.0,0.00044356,120]
[404821730,1770599440596,-500.0,0.00044356,120]
[404821731,1770599440607,-500.0,0.00044356,120]
[404821732,1770599440616,-500.0,0.00044356,120]
[404821733,1770599440626,-364.21538692,0.00044356,120]
[404821734,1770599440637,-518.27997537,0.00044356,120]
[404821735,1770599440647,-500.0,0.00044356,120]
[404821736,1770599440658,-500.0,0.00044356,120]
[404821737,1770599440668,-500.0,0.00044356,120]
[404821738,1770599440677,-500.0,0.00044356,120]
[404821739,1770599440687,-500.0,0.00044356,120]
[404821740,1770599440696,-500.0,0.00044356,120]
[404821741,1770599440705,-500.0,0.00044356,120]
[404821742,1770599440715,-500.0,0.00044356,120]
[404821743,1770599440724,-500.0,0.00044356,120]
[404821744,1770599440735,-500.0,0.00044356,120]
[404821745,1770599440744,-500.0,0.00044356,120]
[404821746,1770599440754,-500.0,0.00044356,120]
[404821747,1770599440764,-500.0,0.00044356,120]
[404821748,1770599440775,-294.08,0.00044356,120]
[404821749,1770599440789,-500.0,0.00044356,120]
[404821750,1770599440798,-500.0,0.00044356,120]
[404821751,1770599440807,-500.0,0.00044356,120]
[404821752,1770599440817,-500.0,0.00044356,120]
[404821753,1770599440827,-500.0,0.00044356,120]
[404821754,1770599440836,-500.0,0.00044356,120]
[404821755,1770599440845,-500.0,0.00044356,120]
[404821756,1770599440855,-500.0,0.00044356,120]
[404821757,1770599440864,-500.0,0.00044356,120]
[404821758,1770599440874,-500.0,0.00044356,120]
[404821759,1770599440884,-500.0,0.00044356,120]
[404821760,1770599440893,-500.0,0.00044356,120]
[404821761,1770599440902,-500.0,0.00044356,120]
[404821762,1770599440912,-500.0,0.00044356,120]
[404821763,1770599440922,-540.0,0.00044356,120]
[404821764,1770599440931,-500.0,0.00044356,120]
[404821765,1770599440941,-500.0,0.00044356,120]
[404821766,1770599440950,-529.44,0.00044356,120]
[404821767,1770599440959,-500.0,0.00044356,120]
[404821768,1770599440968,-500.0,0.00044356,120]
[404821769,1770599440978,-500.0,0.00044356,120]
[404821770,1770599440988,-500.0,0.00044356,120]
[404821771,1770599440998,-597.62023702,0.00044356,120]
[404821772,1770599441007,-403.44,0.00044356,120]
[404821773,1770599441016,-500.0,0.00044356,120]
[404821774,1770599441027,-500.0,0.00044356,120]
[404821775,1770599441040,-500.0,0.00044356,120]
[404821776,1770599441049,-500.0,0.00044356,120]
[404821777,1770599441058,-500.0,0.00044356,120]
[404821778,1770599441067,-500.0,0.00044356,120]
[404821779,1770599441079,-500.0,0.00044356,120]
[404821780,1770599441088,-500.0,0.00044356,120]
[404821781,1770599441097,-500.0,0.00044356,120]
[404821782,1770599441107,-500.0,0.00044356,120]
[404821783,1770599441116,-500.0,0.00044356,120]
[404821784,1770599441125,-500.0,0.00044356,120]
[404821785,1770599441134,-500.0,0.00044356,120]
[404821786,1770599441143,-500.0,0.00044356,120]
[404821787,1770599441152,-500.0,0.00044356,120]
[404821788,1770599441161,-500.0,0.00044356,120]
[404821789,1770599441171,-500.0,0.00044356,120]
[404821790,1770599441179,-500.0,0.00044356,120]
[404821791,1770599441188,-500.0,0.00044356,120]
[404821792,1770599441199,-500.0,0.00044356,120]
[404821793,1770599441216,-500.0,0.00044356,120]
[404821794,1770599441225,-500.0,0.00044356,120]
[404821795,1770599441234,-336.79991823,0.00044356,120]
[404821796,1770599441243,-500.0,0.00044356,120]
[404821797,1770599441252,-500.0,0.00044356,120]
[404821798,1770599441262,-500.0,0.00044356,120]
[404821799,1770599441271,-500.0,0.00044356,120]
[404821800,1770599441280,-500.0,0.00044356,120]
[404821801,1770599441289,-500.0,0.00044356,120]
[404821802,1770599441298,-500.0,0.00044356,120]
[404821803,1770599441307,-500.0,0.00044356,120]
[404821804,1770599441316,-510.48,0.00044356,120]
[404821805,1770599441325,-500.0,0.00044356,120]
[404821806,1770599441335,-547.14499085,0.00044356,120]
[404821807,1770599441344,-194.8,0.00044356,120]
[404821808,1770599441353,-500.0,0.00044356,120]
[404821809,1770599441363,-500.0,0.00044356,120]
[404821810,1770599441372,-500.0,0.00044356,120]
[404821811,1770599441381,-500.0,0.00044356,120]
[404821812,1770599441390,-500.0,0.00044356,120]
[404821813,1770599441399,-500.0,0.00044356,120]
[404821814,1770599441408,-500.0,0.00044356,120]
[404821815,1770599441418,-500.0,0.00044356,120]
[404821816,1770599441427,-500.0,0.00044356,120]
[404821817,1770599441436,-500.0,0.00044356,120]
[404821818,1770599441446,-167.15,0.00044356,120]
[404821819,1770599441455,-500.0,0.00044356,120]
[404821820,1770599441465,-500.0,0.00044356,120]
[404821821,1770599441474,-500.0,0.00044356,120]
[404821822,1770599441483,-500.0,0.00044356,120]
[404821823,1770599441492,-500.0,0.00044356,120]
[404821824,1770599441501,-500.0,0.00044356,120]
[404821825,1770599441510,-500.0,0.00044356,120]
[404821826,1770599441519,-500.0,0.00044356,120]
[404821827,1770599441528,-500.0,0.00044356,120]
[404821828,1770599441537,-500.0,0.00044356,120]
[404821829,1770599441547,-500.0,0.00044356,120]
[404821830,1770599441556,-500.0,0.00044356,120]
[404821831,1770599441565,-500.0,0.00044356,120]
[404821832,1770599441574,-500.0,0.00044356,120]
[404821833,1770599441583,-500.0,0.00044356,120]
[404821834,1770599441592,-500.0,0.00044356,120]
[404821835,1770599441601,-500.0,0.00044356,120]
[404821836,1770599441610,-500.0,0.00044356,120]
[404821837,1770599441619,-500.0,0.00044356,120]
[404821838,1770599441628,-500.0,0.00044356,120]
[404821839,1770599441637,-500.0,0.00044356,120]
[404821840,1770599441646,-500.0,0.00044356,120]
[404821841,1770599441655,-500.0,0.00044356,120]
[404821842,1770599441663,-500.0,0.00044356,120]
[404821843,1770599441673,-500.0,0.00044356,120]
[404821844,1770599441682,-500.0,0.00044356,120]
[404821845,1770599441691,-612.38830286,0.00044356,120]
[404821846,1770599441699,-596.43624303,0.00044356,120]
[404821847,1770599441708,-500.0,0.00044356,60]
[404821848,1770599441718,-500.0,0.00044356,60]
[404821849,1770599441726,-506.37398375,0.00044356,120]
[404821850,1770599441735,-503.16996956,0.00044356,120]
[404821851,1770599441744,-500.0,0.00044356,120]
[404821852,1770599441754,-500.0,0.00044356,120]
[404821853,1770599441764,-500.0,0.00044356,120]
[404821854,1770599441773,-500.0,0.00044356,120]
[404821855,1770599441781,-500.0,0.00044356,120]
[404821856,1770599441790,-500.0,0.00044356,120]
[404821857,1770599441799,-500.0,0.00044356,120]
[404821858,1770599441808,-500.0,0.00044356,120]
[404821859,1770599441817,-500.0,0.00044356,120]
[404821860,1770599441826,-500.0,0.00044356,120]
[404821861,1770599441835,-500.0,0.00044356,120]
[404821862,1770599441845,-295.14,0.00044356,120]
[404821863,1770599441854,-500.0,0.00044356,120]
[404821864,1770599441863,-500.0,0.00044356,120]
[404821865,1770599441873,-575.01,0.00044356,120]
[404821866,1770599441882,-477.99134804,0.00044356,120]
[404821867,1770599441891,-500.0,0.00044356,120]
[404821868,1770599441900,-500.0,0.00044356,120]
[404821869,1770599441909,-500.0,0.00044356,120]
[404821870,1770599441920,-337.66807316,0.00044356,120]
[404821871,1770599441930,-500.0,0.00044356,120]
[404821872,1770599441940,-603.27538205,0.00044356,120]
[404821873,1770599441949,-500.0,0.00044356,120]
[404821874,1770599441959,-500.0,0.00044356,120]
[404821875,1770599441969,-500.0,0.00044356,120]
[404821876,1770599441978,-500.0,0.00044356,120]
[404821877,1770599441987,-500.0,0.00044356,120]
[404821878,1770599441997,-484.33964506,0.00044356,120]
[404821879,1770599442007,-500.0,0.00044356,120]
[404821880,1770599442017,-500.0,0.00044356,120]
[404821881,1770599442028,-500.0,0.00044356,120]
[404821882,1770599442040,-530.48588431,0.00044356,120]
[404821883,1770599442049,-500.0,0.00044356,53]
[404821884,1770599442061,-500.0,0.00044356,53]
[404821885,1770599442071,-517.52881059,0.00044356,53]
[404821886,1770599442080,-500.0,0.00044356,120]
[404821887,1770599442088,-500.0,0.00044356,120]
[404821888,1770599442098,-500.0,0.00044356,120]
[404821889,1770599442109,-500.0,0.00044356,120]
[404821890,1770599442118,-500.0,0.00044356,120]
[404821891,1770599442128,-378.172373,0.00044356,120]
[404821892,1770599442137,-500.0,0.00044356,120]
[404821893,1770599442149,-500.0,0.00044356,120]
[404821894,1770599442159,-534.34,0.00044356,120]
[404821895,1770599442170,-500.0,0.00044356,120]
[404821896,1770599442179,-500.0,0.00044356,120]
[404821897,1770599442187,-500.0,0.00044356,120]
[404821898,1770599442198,-293.28,0.00044356,120]
[404821899,1770599442207,-500.0,0.00044356,120]
[404821900,1770599442216,-500.0,0.00044356,120]
[404821901,1770599442226,-500.0,0.00044356,120]
[404821902,1770599442235,-500.0,0.00044356,120]
[404821903,1770599442243,-500.0,0.00044356,120]
[404821904,1770599442253,-500.0,0.00044356,120]
[404821905,1770599442263,-500.0,0.00044356,120]
[404821906,1770599442272,-500.0,0.00044356,120]
[404821907,1770599442281,-500.0,0.00044356,120]
[404821908,1770599442290,-500.0,0.00044356,120]
[404821909,1770599442300,-500.0,0.00044356,120]
[404821910,1770599442309,-593.6,0.00044356,120]
[404821911,1770599442318,-500.0,0.00044356,120]
[404821912,1770599442327,-504.36,0.00044356,120]
[404821913,1770599442337,-500.0,0.00044356,120]
[404821914,1770599442346,-500.0,0.00044356,120]
[404821915,1770599442355,-500.0,0.00044356,120]
[404821916,1770599442364,-500.0,0.00044356,120]
[404821917,1770599442372,-500.0,0.00044356,120]
[404821918,1770599442381,-500.0,0.00044356,120]
[404821919,1770599442390,-500.0,0.00044356,120]
[404821920,1770599442400,-500.0,0.00044356,120]
[404821921,1770599442409,-172.88,0.00044356,120]
[404821922,1770599442418,-435.05,0.00044356,120]
[404821923,1770599442427,-500.0,0.00044356,120]
[404821924,1770599442437,-500.0,0.00044356,120]
[404821925,1770599442447,-500.0,0.00044356,120]
[404821926,1770599442456,-500.0,0.00044356,120]
[404821927,1770599442465,-500.0,0.00044356,120]
[404821928,1770599442474,-500.0,0.00044356,120]
[404821929,1770599442483,-500.0,0.00044356,120]
[404821930,1770599442492,-500.0,0.00044356,120]
[404821931,1770599442500,-500.0,0.00044356,120]
[404821932,1770599442509,-500.0,0.00044356,120]
[404821933,1770599442518,-500.0,0.00044356,120]
[404821934,1770599442531,-500.0,0.00044356,120]
[404821935,1770599442546,-500.0,0.00044356,120]
[404821936,1770599442555,-500.0,0.00044356,120]
[404821937,1770599442565,-500.0,0.00044356,120]
[404821938,1770599442574,-500.0,0.00044356,120]
[404821939,1770599442583,-500.0,0.00044356,120]
[404821940,1770599442592,-500.0,0.00044356,120]
[404821941,1770599442601,-500.0,0.00044356,120]
[404821942,1770599442611,-500.0,0.00044356,120]
[404821943,1770599442620,-500.0,0.00044356,120]
[404821944,1770599442629,-500.0,0.00044356,120]
[404821945,1770599442638,-500.0,0.00044356,120]
[404821946,1770599442648,-500.0,0.00044356,120]
[404821947,1770599442657,-500.0,0.00044356,120]
[404821948,1770599442667,-500.0,0.00044356,120]
[404821949,1770599442675,-500.0,0.00044356,120]
[404821950,1770599442684,-500.0,0.00044356,120]
[404821951,1770599442694,-500.0,0.00044356,120]
[404821952,1770599442703,-500.0,0.00044356,120]
[404821953,1770599442712,-500.0,0.00044356,120]
[404821954,1770599442722,-500.0,0.00044356,120]
[404821955,1770599442731,-500.0,0.00044356,120]
[404821956,1770599442741,-500.0,0.00044356,120]
[404821957,1770599442750,-500.0,0.00044356,120]
[404821958,1770599442760,-500.0,0.00044356,120]
[404821959,1770599442770,-500.0,0.00044356,120]
[404821960,1770599442780,-500.0,0.00044356,120]
[404821961,1770599442789,-500.0,0.00044356,120]
[404821962,1770599442801,-500.0,0.00044356,120]
[404821963,1770599442812,-500.0,0.00044356,120]
[404821964,1770599442822,-500.0,0.00044356,120]
[404821965,1770599442832,-290.34,0.00044356,120]
[404821966,1770599442842,-500.0,0.00044356,120]
[404821967,1770599442852,-500.0,0.00044356,120]
[404821968,1770599442862,-500.0,0.00044356,120]
[404821969,1770599442872,-500.0,0.00044356,120]
[404821970,1770599442882,-500.0,0.00044356,120]
[404821971,1770599442891,-500.0,0.00044356,120]
[404821972,1770599442902,-500.0,0.00044356,120]
[404821973,1770599442912,-500.0,0.00044356,120]
[404821974,1770599442922,-500.0,0.00044356,120]
[404821975,1770599442932,-500.0,0.00044356,120]
[404821976,1770599442941,-500.0,0.00044356,120]
[404821977,1770599442950,-500.0,0.00044356,120]
[404821978,1770599442961,-500.0,0.00044356,120]
[404821979,1770599442971,-500.0,0.00044356,120]
[404821980,1770599442981,-500.0,0.00044356,120]
[404821981,1770599442992,-500.0,0.00044356,120]
[404821982,1770599443002,-500.0,0.00044356,120]
[404821983,1770599443012,-500.0,0.00044356,120]
[404821984,1770599443022,-500.0,0.00044356,120]
[404821985,1770599443035,-500.0,0.00044356,120]
[404821986,1770599443046,-500.0,0.00044356,120]
[404821987,1770599443055,-500.0,0.00044356,120]
[404821988,1770599443064,-500.0,0.00044356,120]
[404821989,1770599443074,-228.44441421,0.00044356,120]
[404821990,1770599443083,-500.0,0.00044356,120]
[404821991,1770599443092,-500.0,0.00044356,120]
[404821992,1770599443103,-500.0,0.00044356,120]
[404821993,1770599443113,-500.0,0.00044356,120]
[404821994,1770599443123,-500.0,0.00044356,120]
[404821995,1770599443134,-408.5556008,0.00044356,120]
[404821996,1770599443143,-500.0,0.00044356,120]
[404821997,1770599443153,-500.0,0.00044356,120]
[404821998,1770599443163,-500.0,0.00044356,120]
[404821999,1770599443173,-500.0,0.00044356,120]
[404822000,1770599443182,-500.0,0.00044356,120]
[404822001,1770599443191,-500.0,0.00044356,120]
[404822002,1770599443201,-500.0,0.00044356,120]
[404822003,1770599443210,-500.0,0.00044356,120]
[404822004,1770599443220,-500.0,0.00044356,120]
[404822005,1770599443229,-500.0,0.00044356,120]
[404822006,1770599443238,-500.0,0.00044356,120]
[404822007,1770599443247,-500.0,0.00044356,120]